{"text_format":"1","workbook":"xlsx","n_sheets":2,"sheets":["Pasiūlymas","Subtiekėjai ir priedai"],"not_rendered":{"charts":0,"images":0,"macros":1,"external_links":0,"defined_names":0,"comments":0,"pivot_tables":0},"unopened":[],"bounds":{"document_bytes":16777216,"sheet_cells":100000,"rows_first":2000,"rows_last":500,"rows_between":2000,"halvings":0,"cell_chars":16384,"cell_head_chars":4096},"cells_cut":0,"cells_raw":0,"read":"whole","date_system":"1900"}

{"sheet":"Pasiūlymas","index":0,"n_rows":166,"n_cols":11,"rows_kept":166,"cut":false,"hidden":false,"merged":[[27,0,27,5],[28,0,28,5],[24,0,24,5],[25,0,25,5],[26,0,26,5],[18,0,18,1],[18,2,18,5],[23,0,23,5],[19,0,19,1],[20,0,20,1],[19,2,19,5],[20,2,20,5],[22,0,22,5],[29,0,29,2],[29,3,29,5],[11,0,11,1],[11,2,11,5],[12,0,12,1],[12,2,12,5],[13,0,13,1],[13,2,13,5],[14,0,14,1],[14,2,14,5],[15,0,15,1],[15,2,15,5],[16,0,16,1],[16,2,16,5],[17,0,17,1],[17,2,17,5]]}
[]
["PIKIMO SĄLYGŲ PRIEDAS \"PASIŪLYMO FORMA\"",null,null,null,null,null,null,null,"Pirkimo sąlygų \n2 priedas"]
[]
["MEDICINOS ĮRANGA"]
[]
["Kam:","Gynybos resursų agentūra prie KAM"]
[]
["Data:","2022 balandžio 14 d."]
["Nr.:",2022041401]
["Vieta:","Kaunas"]
[]
["Tiekėjo pavadinimas / Ūkio subjektų grupės nariai:",null,"UAB \"ALTEKS\""]
["Tiekėjo kodas (-ai):",null,302423144]
["Tiekėjo adresas (-ai):",null,"Savanorių pr. 192-316, Kaunas"]
["Tiekėjo PVM mokėtojo kodas(-ai):",null,"LT100004875613"]
["Tiekėjo / Ūkio subjektų grupės atsakingo partnerio sąskaitos numeris, banko pavadinimas ir banko kodas (-ai):",null,"AB SEB bankas, A/s :  LT387044060007079444"]
["Asmens atsakingo už pasiūlymą vardas, pavardė:",null," direktorius"]
["Asmens atsakingo už pasiūlymą telefono numeris, el. pašto adresas:",null,"alteks@inbox.lt"]
["Tiekėjo / Ūkio subjektų grupės, laimėjimo atveju, pasirašančio sutartį asmens vardas, pavardė, pareigos:",null,"direktorius"]
["Tiekėjo / Ūkio subjektų grupės, laimėjimo atveju, už sutarties vykdymą atsakingo asmens vardas, pavardė, telefono numeris, elektroninio pašto adresas:",null,"direktorius"]
["(1) Tiekėjo / Ūkio subjektų grupės narių, (2) ūkio subjektų, kurių pajėgumais remiamasi, ir (3) jei pašalinimo pagrindai taikomi visiems subtiekėjams - subtiekėjų, kolegialaus priežiūros organo (Stebėtojų tarybos) ir (ar) kolegialaus valdymo organo (Valdybos) narių sąrašas (jei sudaryta) ir (ar) asmuo, kuriam suteikti VPĮ 46 str. 2 d. 2 p. numatyti įgaliojimai",null,null,null,null,null,{"$f":"IF((SUMPRODUCT(--(C21=\"\"))>0), \"Privaloma užpildyti, kai taikomi pašalinimo pagrindai\", \"\")","v":"Privaloma užpildyti, kai taikomi pašalinimo pagrindai"}]
[]
["Tiekėjo patvirtinimai:"]
["1. Šiuo pasiūlymu pažymime, kad sutinkame su visomis pirkimo sąlygomis, nustatytomis:"]
["1.1. viešojo pirkimo dokumentuose"]
["1.2. kituose pirkimo dokumentuose (jų paaiškinimuose, papildymuose)."]
["2. Patvirtiname, kad informacija ir duomenys, pateikti pasiūlyme, yra teisingi ir apima viską, ko reikia tinkamam sutarties įvykdymui"]
["3. Patvirtiname, kad jei pasiūlyme nenurodyti kolegialaus priežiūros/valdymo organų nariai, šie organai juridiniuose asmenyse nėra sudaryti (taikoma, kai pirkimo dokumentuose nustatyti pašalinimo pagrindai)."]
["4. Pasiūlymas galioja iki termino, nustatyto pirkimo dokumentuose."]
["5. Tais atvejais, kai pagal galiojančius teisės aktus tiekėjui nereikia mokėti PVM, jis nurodo priežastis, dėl kurių PVM nemoka:"]
["6. Tiekėjas kainas pateikia, nurodydamas ne daugiau skaičių po kablelio, nei leidžiama pirkimo dokumentuose."]
["1. DALIS.","PERIMETRAS, KOMPIUTERINIS"]
[]
["Tiekėjo pasiūlymas:"]
["Nr.","Pavadinimas","Mato vienetas","Maksimalus kiekis","Minimalus kiekis","Siūloma reikšmė ekonominio naudingumo balui nustatyti (pagal mato vienetą arba Taip/Ne) ","Prekės pavadinimas, kodas/modelis","Gamintojas, šalis","1 vnt. kaina be PVM, Eur","Suma be PVM, Eur"]
["1.","Perimetras, kompiuterinis"]
["1.1.","Perimetras, kompiuterinis","vnt.",1,1,null,null,null,null,{"$f":"IF(ISBLANK(I37),\"\", PRODUCT(D37,I37))","v":""}]
["1.1.1.","Perimetras turi ventiliacijos funkciją","Taip/Ne"]
["1.1.2.","Didesnė nei 170 laipsnių tiriamo akipločio horizontali riba","laipsniai"]
["1.1.3.","Didesnė nei 70 laipsnių tiriamo akipločio vertikali riba","laipsniai"]
[null,null,null,null,null,null,null,null,"Suma be PVM",{"$f":"IF((COUNT(D37:D40)<>COUNT(J37:J40)),\"\", SUM(J37:J40))","v":""},{"$f":"IF((COUNT(D37:D40)<>COUNT(J37:J40)),\"Neužpildytos visų objektų kainos\", \"\")","v":"Neužpildytos visų objektų kainos"}]
[null,null,null,null,null,null,null,null,"PVM suma"]
[null,null,null,null,null,null,null,null,"Suma su PVM",{"$f":"IF(ISBLANK(J42), \"\", SUM(J41:J42))","v":""}]
[]
[]
[]
["2. DALIS","TOMOGRAFAS, OPTINIS, KOHERENTINIS"]
[]
["Tiekėjo pasiūlymas:"]
["Nr.","Pavadinimas","Mato vienetas","Maksimalus kiekis","Minimalus kiekis","Siūloma reikšmė ekonominio naudingumo balui nustatyti (pagal mato vienetą arba Taip/Ne) ","Prekės pavadinimas, kodas/modelis","Gamintojas, šalis","1 vnt. kaina be PVM, Eur","Suma be PVM, Eur"]
["2.","Tomografas, optinis, koherentinis"]
["2.1.","Tomografas, optinis, koherentinis","vnt.",1,1,null,null,null,null,{"$f":"IF(ISBLANK(I52),\"\", PRODUCT(D52,I52))","v":""}]
["2.1.1.","Spalvota midriazinė akies dugno fotografija","Taip/Ne"]
["2.1.2.","Paciento žvilgsnio vidinės fiksacijos taškų skaičius akies dugno periferijos fotografime didesnis nei 7 taškai","Taip/Ne"]
["2.1.3.","Programinės įrangos DICOM worklist ir DICOM send palaikymas","Taip/Ne"]
[null,null,null,null,null,null,null,null,"Suma be PVM",{"$f":"IF((COUNT(D52:D55)<>COUNT(J52:J55)),\"\", SUM(J52:J55))","v":""},{"$f":"IF((COUNT(D52:D55)<>COUNT(J52:J55)),\"Neužpildytos visų objektų kainos\", \"\")","v":"Neužpildytos visų objektų kainos"}]
[null,null,null,null,null,null,null,null,"PVM suma"]
[null,null,null,null,null,null,null,null,"Suma su PVM",{"$f":"IF(ISBLANK(J57), \"\", SUM(J56:J57))","v":""}]
[]
[]
[]
["3. DALIS","SISTEMA, VAKUUMINIŲ EKG ELEKTRODŲ VELOERGOMETRUI"]
[]
["Tiekėjo pasiūlymas:"]
["Nr.","Pavadinimas","Mato vienetas","Maksimalus kiekis","Minimalus kiekis","Siūloma reikšmė ekonominio naudingumo balui nustatyti (pagal mato vienetą arba Taip/Ne) ","Prekės pavadinimas, kodas/modelis","Gamintojas, šalis","1 vnt. kaina be PVM, Eur","Suma be PVM, Eur"]
["3.","Sistema, vakuuminių EKG elektrodų veloergometrui"]
["3.1.","Sistema, vakuuminių EKG elektrodų veloergometrui","vnt.",4,4,null,null,null,null,{"$f":"IF(ISBLANK(I67),\"\", PRODUCT(D67,I67))","v":""}]
["3.1.1.","Garantinis laikotarpis ilgesnis nei 24 mėnesiai","mėnesiai"]
[null,null,null,null,null,null,null,null,"Suma be PVM",{"$f":"IF((COUNT(D67:D68)<>COUNT(J67:J68)),\"\", SUM(J67:J68))","v":""},{"$f":"IF((COUNT(D67:D68)<>COUNT(J67:J68)),\"Neužpildytos visų objektų kainos\", \"\")","v":"Neužpildytos visų objektų kainos"}]
[null,null,null,null,null,null,null,null,"PVM suma"]
[null,null,null,null,null,null,null,null,"Suma su PVM",{"$f":"IF(ISBLANK(J70), \"\", SUM(J69:J70))","v":""}]
[]
[]
[]
["4. DALIS","APARATAS FIZIOTERAPIJAI, KOMBINUOTOS TERAPIJOS"]
[]
["Tiekėjo pasiūlymas:"]
["Nr.","Pavadinimas","Mato vienetas","Maksimalus kiekis","Minimalus kiekis","Siūloma reikšmė ekonominio naudingumo balui nustatyti (pagal mato vienetą arba Taip/Ne) ","Prekės pavadinimas, kodas/modelis","Gamintojas, šalis","1 vnt. kaina be PVM, Eur","Suma be PVM, Eur"]
["4.","Aparatas fizioterapijai, kombinuotos terapijos"]
["4.1.","Aparatas fizioterapijai, kombinuotos terapijos","vnt.",1,1,null,null,null,null,{"$f":"IF(ISBLANK(I80),\"\", PRODUCT(D80,I80))","v":""}]
["4.1.1.","Turi būti Guided therapy system","Taip/Ne"]
["4.1.2.","Turi būti BURST tipo TENS arba atsitiktinio dažnio TENS srovė","Taip/Ne"]
["4.1.3.","Turi būti BURST tipo TENS ir atsitiktinio dažnio TENS srovė","Taip/Ne"]
["4.1.4.","Turi būti neuroraumeninės elektrostimuliacijos bifazinė banga","Taip/Ne"]
["4.1.5.","Jonoforezė arba fonoforezė kaip atskira programa meniu sąraše","Taip/Ne"]
["4.1.6.","Jonoforezė ir fonoforezė kaip atskira programa meniu sąraše","Taip/Ne"]
[null,null,null,null,null,null,null,null,"Suma be PVM",{"$f":"IF((COUNT(D80:D86)<>COUNT(J80:J86)),\"\", SUM(J80:J86))","v":""},{"$f":"IF((COUNT(D80:D86)<>COUNT(J80:J86)),\"Neužpildytos visų objektų kainos\", \"\")","v":"Neužpildytos visų objektų kainos"}]
[null,null,null,null,null,null,null,null,"PVM suma"]
[null,null,null,null,null,null,null,null,"Suma su PVM",{"$f":"IF(ISBLANK(J88), \"\", SUM(J87:J88))","v":""}]
[]
[]
[]
["5. DALIS","SISTEMA, DEGUONIES TIEKIMO"]
[]
["Tiekėjo pasiūlymas:"]
["Nr.","Pavadinimas","Mato vienetas","Maksimalus kiekis","Minimalus kiekis","Siūloma reikšmė ekonominio naudingumo balui nustatyti (pagal mato vienetą arba Taip/Ne) ","Prekės pavadinimas, kodas/modelis","Gamintojas, šalis","1 vnt. kaina be PVM, Eur","Suma be PVM, Eur"]
["5.","Sistema, deguonies tiekimo"]
["5.1.","Sistema, deguonies tiekimo","vnt.",2,2,null,null,null,null,{"$f":"IF(ISBLANK(I98),\"\", PRODUCT(D98,I98))","v":""}]
["5.1.1.","Didesnis nei 20l/min pagaminamo deguonies kiekis","Taip/Ne"]
["5.1.2.","Didesnis nei 30l/min deguonies užpildymo srautas","Taip/Ne"]
["5.1.3.","Ilgesnis nei 24 mėnesiai garantinio aptarnavimo laikotarpis","mėn."]
[null,null,null,null,null,null,null,null,"Suma be PVM",{"$f":"IF((COUNT(D98:D101)<>COUNT(J98:J101)),\"\", SUM(J98:J101))","v":""},{"$f":"IF((COUNT(D98:D101)<>COUNT(J98:J101)),\"Neužpildytos visų objektų kainos\", \"\")","v":"Neužpildytos visų objektų kainos"}]
[null,null,null,null,null,null,null,null,"PVM suma"]
[null,null,null,null,null,null,null,null,"Suma su PVM",{"$f":"IF(ISBLANK(J103), \"\", SUM(J102:J103))","v":""}]
[]
[]
[]
["6. DALIS","KAPNOGRAFAS, NEŠIOJAMAS"]
[]
["Tiekėjo pasiūlymas:"]
["Nr.","Pavadinimas","Mato vienetas","Maksimalus kiekis","Minimalus kiekis","Siūloma reikšmė ekonominio naudingumo balui nustatyti (pagal mato vienetą arba Taip/Ne) ","Prekės pavadinimas, kodas/modelis","Gamintojas, šalis","1 vnt. kaina be PVM, Eur","Suma be PVM, Eur"]
["6.","Kapnografas, nešiojamas"]
["6.1.","Kapnografas, nešiojamas","vnt.",2,2,null,null,null,null,{"$f":"IF(ISBLANK(I113),\"\", PRODUCT(D113,I113))","v":""}]
["6.1.1.","Veikimo temperatūra platesnėse ribose nei nuo 0° C iki +40°C","Taip/Ne"]
["6.1.2.","Ilgesnis nei 24 mėnesiai aptarnavimo laikotarpis","mėn."]
[null,null,null,null,null,null,null,null,"Suma be PVM",{"$f":"IF((COUNT(D113:D115)<>COUNT(J113:J115)),\"\", SUM(J113:J115))","v":""},{"$f":"IF((COUNT(D113:D115)<>COUNT(J113:J115)),\"Neužpildytos visų objektų kainos\", \"\")","v":"Neužpildytos visų objektų kainos"}]
[null,null,null,null,null,null,null,null,"PVM suma"]
[null,null,null,null,null,null,null,null,"Suma su PVM",{"$f":"IF(ISBLANK(J117), \"\", SUM(J116:J117))","v":""}]
[]
[]
[]
["7. DALIS","ODONTOLOGINĖS ĮRANGOS KOMPLEKTAS"]
[]
["Tiekėjo pasiūlymas:"]
["Nr.","Pavadinimas","Mato vienetas","Maksimalus kiekis","Minimalus kiekis","Siūloma reikšmė ekonominio naudingumo balui nustatyti (pagal mato vienetą arba Taip/Ne) ","Prekės pavadinimas, kodas/modelis","Gamintojas, šalis","1 vnt. kaina be PVM, Eur","Suma be PVM, Eur"]
["7.","Odontologinės įrangos komplektas"]
["7.1.","Įrenginys, odontologinis","vnt.",8,7,null,null,null,"Pirkimas nutrauktas, pasiūlymo neteikti"]
["7.1.1.","Kėdės valdymas hidraulinis","Taip/Ne"]
["7.1.2.","Mikrovarikrio svoris mažesnis nei 90 g","Taip/Ne"]
["7.2.","Sodasrovė","vnt.",8,7,null,null,null,"Pirkimas nutrauktas, pasiūlymo neteikti"]
["7.3.","Siurblys, vakuuminis","vnt.",8,7,null,null,null,"Pirkimas nutrauktas, pasiūlymo neteikti"]
["7.4.","Kompresorius","vnt.",8,7,null,null,null,"Pirkimas nutrauktas, pasiūlymo neteikti"]
[null,null,null,null,null,null,null,null,"Suma be PVM",{"$f":"IF((COUNT(D127:D132)<>COUNT(J127:J132)),\"\", SUM(J127:J132))","v":""},{"$f":"IF((COUNT(D127:D132)<>COUNT(J127:J132)),\"Neužpildytos visų objektų kainos\", \"\")","v":"Neužpildytos visų objektų kainos"}]
[null,null,null,null,null,null,null,null,"PVM suma"]
[null,null,null,null,null,null,null,null,"Suma su PVM",{"$f":"IF(ISBLANK(J134), \"\", SUM(J133:J134))","v":""}]
[]
[]
[]
["8. DALIS","LEMPA, POLIMERIZACIJOS"]
[]
["Tiekėjo pasiūlymas:"]
["Nr.","Pavadinimas","Mato vienetas","Maksimalus kiekis","Minimalus kiekis","Siūloma reikšmė ekonominio naudingumo balui nustatyti (pagal mato vienetą arba Taip/Ne) ","Prekės pavadinimas, kodas/modelis","Gamintojas, šalis","1 vnt. kaina be PVM, Eur","Suma be PVM, Eur"]
["8.","Lempa, polimerizacijos"]
["8.1.","Lempa, polimerizacijos","vnt.",4,4,null,null,null,null,{"$f":"IF(ISBLANK(I144),\"\", PRODUCT(D144,I144))","v":""}]
["8.1.1.","Galimybė pasirinkti 10, 15, 20 s švitinimo laiką","Taip/Ne"]
["8.1.2.","Ilgesnis nei 50 min darbo laikas be išorinio maitinimo šaltinio","Taip/Ne"]
[null,null,null,null,null,null,null,null,"Suma be PVM",{"$f":"IF((COUNT(D144:D146)<>COUNT(J144:J146)),\"\", SUM(J144:J146))","v":""},{"$f":"IF((COUNT(D144:D146)<>COUNT(J144:J146)),\"Neužpildytos visų objektų kainos\", \"\")","v":"Neužpildytos visų objektų kainos"}]
[null,null,null,null,null,null,null,null,"PVM suma"]
[null,null,null,null,null,null,null,null,"Suma su PVM",{"$f":"IF(ISBLANK(J148), \"\", SUM(J147:J148))","v":""}]
[]
[]
[]
["9. DALIS","STERILIZATORIUS, MAŽASIS"]
[]
["Tiekėjo pasiūlymas:"]
["Nr.","Pavadinimas","Mato vienetas","Maksimalus kiekis","Minimalus kiekis","Siūloma reikšmė ekonominio naudingumo balui nustatyti (pagal mato vienetą arba Taip/Ne) ","Prekės pavadinimas, kodas/modelis","Gamintojas, šalis","1 vnt. kaina be PVM, Eur","Suma be PVM, Eur"]
["9.","Sterilizatorius, mažasis"]
["9.1.","Sterilizatorius, mažasis","vnt.",5,5,null,"CASTELLINI C22","Castellini/Cefla, Italija",3270,{"$f":"IF(ISBLANK(I158),\"\", PRODUCT(D158,I158))","v":16350}]
["9.1.1.","Mažesnis nei 2,9 kW maksimalus sterilizatoriaus naudojamos elektros galingumas","Taip/Ne",null,null,"Taip"]
["9.1.2.","Sterilizatoriaus ekrane pateikiami pranešimai lietuvių kalba","Taip/Ne",null,null,"Taip"]
["9.1.3.","Galimybė ciklų ataskaitas išaugoti tiesiogiai tinkle","Taip/Ne",null,null,"Taip"]
["9.1.4.","Papildoma jungtis išoriniam švaraus vandens tiekimui į analizatorių","Taip/Ne",null,null,"Taip"]
["9.1.5.","Vandens laidumo matavimas ir pateikimas ekrane","Taip/Ne",null,null,"Taip"]
[null,null,null,null,null,null,null,null,"Suma be PVM",{"$f":"IF((COUNT(D158:D163)<>COUNT(J158:J163)),\"\", SUM(J158:J163))","v":16350},{"$f":"IF((COUNT(D158:D163)<>COUNT(J158:J163)),\"Neužpildytos visų objektų kainos\", \"\")","v":""}]
[null,null,null,null,null,null,null,null,"PVM suma",3433.5]
[null,null,null,null,null,null,null,null,"Suma su PVM",{"$f":"IF(ISBLANK(J165), \"\", SUM(J164:J165))","v":19783.5}]

{"sheet":"Subtiekėjai ir priedai","index":1,"n_rows":100,"n_cols":11,"rows_kept":100,"cut":false,"hidden":false,"merged":[[23,0,23,1],[22,0,22,1],[21,0,21,1],[20,0,20,1],[19,0,19,1],[28,0,28,1],[27,0,27,1],[26,0,26,1],[25,0,25,1],[24,0,24,1],[23,2,23,4],[22,2,22,4],[21,2,21,4],[20,2,20,4],[19,2,19,4],[28,2,28,4],[27,2,27,4],[26,2,26,4],[25,2,25,4],[24,2,24,4],[23,5,23,7],[22,5,22,7],[21,5,21,7],[20,5,20,7],[19,5,19,7],[28,5,28,7],[27,5,27,7],[26,5,26,7],[25,5,25,7],[24,5,24,7],[23,8,23,9],[22,8,22,9],[21,8,21,9],[20,8,20,9],[19,8,19,9],[28,8,28,9],[27,8,27,9],[26,8,26,9],[25,8,25,9],[24,8,24,9],[16,0,16,10],[18,8,18,9],[18,5,18,7],[18,2,18,4],[18,0,18,1],[13,0,13,1],[12,0,12,1],[11,0,11,1],[10,0,10,1],[13,8,13,9],[12,8,12,9],[11,8,11,9],[10,8,10,9],[4,0,4,1],[5,5,5,7],[5,0,5,1],[9,0,9,1],[13,2,13,4],[12,2,12,4],[11,2,11,4],[10,2,10,4],[9,2,9,4],[13,5,13,7],[12,5,12,7],[11,5,11,7],[10,5,10,7],[9,5,9,7],[1,0,2,10],[30,0,30,9],[14,5,14,7],[8,5,8,7],[7,5,7,7],[6,5,6,7],[14,8,14,9],[8,8,8,9],[7,8,7,9],[6,8,6,9],[14,0,14,1],[8,0,8,1],[7,0,7,1],[6,0,6,1],[14,2,14,4],[8,2,8,4],[7,2,7,4],[9,8,9,9],[6,2,6,4],[5,2,5,4],[5,8,5,9],[4,8,4,9],[4,5,4,7],[4,2,4,4],[32,0,32,9],[34,7,34,9],[34,1,34,6],[45,7,45,9],[42,7,42,9],[37,7,37,9],[36,7,36,9],[35,7,35,9],[44,7,44,9],[43,7,43,9],[41,7,41,9],[40,7,40,9],[39,7,39,9],[38,7,38,9],[45,1,45,6],[44,1,44,6],[47,0,47,9],[52,4,52,9],[50,4,50,9],[52,0,52,3],[50,0,50,3],[38,1,38,6],[37,1,37,6],[36,1,36,6],[35,1,35,6],[43,1,43,6],[42,1,42,6],[41,1,41,6],[40,1,40,6],[39,1,39,6]]}
[]
["Ūkio subjektai (įskaitant kvazisubtiekėjus - fiziniai asmenys, kuriuos ketinama įdarbinti pirkimo laimėjimo atveju), kurių pajėgumais tiekėjas remiasi, kad atitiktų keliamus kvalifikacijos reikalavimus:"]
[]
[]
["Pavadinimas*",null,"Kodas, adresas",null,null,"Perduodami įsipareigojimai",null,null,"Perduodamų įsipareigojimų dalis nuo visos pirkimo sutarties (Eur arba %)",null,"Kval. Reikalavimo Nr."]
[]
[]
[]
[]
[]
[]
[]
[]
[]
[]
[]
["Subtiekėjams / subteikėjams / subrangovams numatomos perduoti veiklos (privaloma nurodyti) ir šių ūkio subjektų pavadinimai (jei žinomi):"]
[]
["Pavadinimas",null,"Kodas, adresas",null,null,"Perduodama veikla*",null,null,"Perduodamos veiklos dalis nuo visos pirkimo sutarties (Eur arba %)"]
[]
[]
[]
[]
[]
[]
[]
[]
[]
[]
[]
[]
[]
["Kartu su pasiūlymu pateikiami šie dokumentai:"]
[]
["Nr.","Dokumento  pavadinimas",null,null,null,null,null,"Dokumentas yra konfidencialus? Taip/Ne"]
["1","Jungtinės veiklos kopija (jei taikoma)"]
["2","Europos bendrasis viešųjų pirkimų dokumentas"]
["3","Subtiekimo sutartis, ketinimų protokolas, preliminarios sutartys ar kiti dokumentai, patvirtinantys, kad laimėjus pirkimą tiekėjui bus prieinami kitų ūkio subjektų ištekliai (jei pasitelkiami kvalifikacijos atitikimui)"]
["4","Pasiūlymo galiojimo užtikrinimas"]
["5","Dokumentai reikalaujami pirkimo sąlygų priede \"Kokybės kriterijai ir jų vertinimas\""]
["6","Pasiūlymo atitikimą pirkimo sąlygų techninei specifikacijai pagrindžiantys dokumentai"]
[]
[]
[]
[]
[]
[]
["Pasiūlyme nurodyta Prekės kaina, išskyrus jos sudedamąsias dalis, subtiekėjai, taip pat kita informacija, kuri teisės aktų nustatyta tvarka turi būti skelbiama arba kitokiu būdu viešai prieinama visuomenei, nėra laikoma konfidencialia informacija. Konfidencialią informaciją sudaro, visų pirma, komercinė (gamybinė) paslaptis ir konfidencialieji pasiūlymų aspektai. Informacija, kurią viešai skelbti įpareigoja Lietuvos Respublikos įstatymai, negali būti tiekėjo nurodoma kaip konfidenciali, todėl, tiekėjui nurodžius tokią informaciją kaip konfidencialią, perkančioji organizacija turi teisę ją skelbti. Jei tiekėjas nenurodo konfidencialios informacijos, laikoma, kad konfidencialios informacijos tiekėjo pasiūlyme nėra. Vadovaujantis Informacijos viešinimo Centrinėje viešųjų pirkimų informacinėje sistemoje tvarkos aprašu, patvirtintu Viešųjų pirkimų tarnybos direktoriaus 2017 m. birželio 19 d. įsakymu Nr. 1S-91 „Dėl Informacijos viešinimo Centrinėje viešųjų pirkimų informacinėje sistemoje tvarkos aprašo patvirtinimo“, perkančioji organizacija laimėjusio dalyvio pasiūlymą, išskyrus informaciją, kurią tiekėjas nurodė kaip konfidencialią, paskelbs CVP IS."]
[]
[]
["Tiekėjo arba jo įgalioto asmens pareigų pavadinimas:"]
[]
["Pasirašančio asmens vardas ir pavardė:"]
[]
[]
[]
[]
[]
[]
[]
[]
[]
[]
[]
[]
[]
[]
[]
[]
[]
[]
[]
[]
[]
[]
[]
[]
[]
[]
[]
[]
[]
[]
[]
[]
[]
[]
[]
[]
[]
[]
[]
[]
[]
[]
[]
[]
[]
[]
["1396 2022-02-23 15:58:11"]